bitfinex-derivatives/quotes_BTCF0:USTF0_20250724
["timestamp","ask_amount","ask_price","bid_price","bid_amount"]
[1753340082079,0.2563036,117440.0,117430.0,1.52675304]
[1753340083987,0.2573036,117440.0,117430.0,1.52675304]
[1753340084376,0.2737336,117440.0,117430.0,1.52675304]
[1753340084579,0.2727336,117440.0,117430.0,1.52775304]
[1753340085683,0.2727336,117440.0,117430.0,1.35744904]
[1753340086085,0.2727336,117440.0,117430.0,0.72584904]
[1753340086288,0.2727336,117440.0,117430.0,1.35748904]
[1753340087986,0.2727336,117440.0,117430.0,0.72814]
[1753340088186,0.2727336,117440.0,117430.0,1.12791662]
[1753340088688,0.2727336,117440.0,117430.0,0.49627662]
[1753340088883,0.2727336,117440.0,117430.0,1.12891662]
[1753340089582,0.2727336,117440.0,117430.0,1.35848914]
[1753340090086,0.2727336,117440.0,117430.0,1.12891662]
[1753340090989,0.3075936,117440.0,117430.0,1.12891662]
[1753340091284,0.2727336,117440.0,117430.0,1.12891662]
[1753340091487,0.2563036,117440.0,117430.0,1.35904914]
[1753340091688,0.2563036,117440.0,117430.0,0.72584914]
[1753340092084,0.2563036,117440.0,117430.0,1.35880914]
[1753340092284,0.2563036,117440.0,117430.0,1.35868914]
[1753340092882,0.2137497,117440.0,117430.0,1.35860914]
[1753340093182,0.32325766,117460.0,117450.0,0.1701751]
[1753340093484,0.2978021,117460.0,117450.0,1.12720762]
[1753340093887,0.2552371,117470.0,117460.0,0.2527106]
[1753340094086,0.2552371,117470.0,117460.0,0.49300993]
[1753340094288,0.2552371,117470.0,117460.0,0.66327393]
[1753340094593,0.2798471,117470.0,117460.0,0.66327393]
[1753340094887,0.2798471,117470.0,117460.0,0.49300993]
[1753340095185,0.2798471,117470.0,117460.0,1.12660993]
[1753340095889,0.2848471,117470.0,117460.0,1.12877498]
[1753340096486,0.1751605,117470.0,117460.0,1.12877498]
[1753340096886,0.1751605,117470.0,117460.0,0.89920246]
[1753340097081,0.1751605,117470.0,117460.0,1.12877498]
[1753340098095,0.1711605,117470.0,117460.0,1.13077498]
[1753340099989,0.1751605,117470.0,117460.0,1.13177498]
[1753340100197,0.1644505,117470.0,117460.0,1.30203898]
[1753340100798,0.005,117470.0,117460.0,1.40203898]
[1753340100991,0.2552163,117480.0,117470.0,0.2246561]
[1753340101187,0.2552163,117480.0,117470.0,0.68380114]
[1753340101489,0.2552163,117480.0,117470.0,0.85404914]
[1753340101794,0.2552163,117480.0,117470.0,0.68496619]
[1753340102299,0.2814163,117480.0,117470.0,0.68596619]
[1753340102494,0.2907961,117470.0,117460.0,0.01172681]
[1753340102796,0.30149673,117470.0,117460.0,0.23057252]
[1753340102991,0.4184372,117460.0,117450.0,0.86885252]
[1753340103192,0.4396629,117460.0,117450.0,0.86885252]
[1753340103498,0.4386629,117460.0,117450.0,0.89057252]
[1753340103685,0.4386629,117460.0,117450.0,0.92336252]
[1753340103885,0.4386629,117460.0,117450.0,0.28408252]
[1753340104087,0.4174372,117460.0,117450.0,0.92424252]
[1753340104295,0.4174372,117460.0,117450.0,0.28408252]
[1753340104497,0.4174372,117460.0,117450.0,0.92424252]
[1753340104999,0.4174372,117460.0,117450.0,0.28408252]
[1753340105194,0.4174372,117460.0,117450.0,1.09541762]
[1753340105804,0.4184372,117460.0,117450.0,1.09641762]
[1753340106102,0.354174,117460.0,117450.0,1.09641762]
[1753340106302,0.343354,117460.0,117450.0,1.09641762]
[1753340106504,0.207663,117460.0,117450.0,1.09641762]
[1753340106704,0.1711606,117460.0,117450.0,1.19641762]
[1753340107002,0.1701556,117470.0,117460.0,0.1701606]
[1753340107304,0.1701556,117470.0,117460.0,0.39973312]
[1753340107497,0.1701556,117470.0,117460.0,0.56999712]
[1753340108303,0.1731556,117470.0,117460.0,0.57099712]
[1753340108604,0.1731556,117470.0,117460.0,0.86839712]
[1753340108804,0.1761556,117470.0,117460.0,0.86939712]
[1753340109608,0.2330956,117470.0,117460.0,0.69913312]
[1753340109806,0.2330956,117470.0,117460.0,1.51039712]
[1753340110695,0.2330956,117470.0,117460.0,0.69913312]
[1753340110903,0.2330956,117470.0,117460.0,1.34021312]
[1753340110904,0.2488456,117470.0,117460.0,1.34021312]
[1753340111499,0.2488456,117470.0,117460.0,0.4695606]
[1753340111700,0.2948056,117470.0,117460.0,0.69813312]
[1753340111901,0.2948056,117470.0,117460.0,1.33897312]
[1753340112105,0.1701753,117450.0,117440.0,0.27211932]
[1753340112306,0.2271153,117450.0,117440.0,1.45525514]
[1753340112499,0.2251153,117450.0,117440.0,1.62555114]
[1753340113006,0.2251153,117450.0,117440.0,0.71441514]
[1753340113202,0.2408653,117450.0,117440.0,1.45601514]
[1753340113506,0.2408653,117450.0,117440.0,1.45597514]
[1753340113806,0.2418653,117450.0,117440.0,1.46097514]
[1753340114295,0.07369,117450.0,117440.0,1.46097514]
[1753340114499,0.1711752,117450.0,117440.0,1.4734905]
[1753340114801,0.001,117450.0,117440.0,1.4734905]
[1753340115003,0.2271034,117460.0,117450.0,0.1701752]
[1753340115202,0.05694,117460.0,117450.0,0.39974772]
[1753340115508,0.227098,117470.0,117460.0,0.1701608]
[1753340115702,0.1008181,117480.0,117460.0,1.39816024]
[1753340115908,0.2428336,117480.0,117470.0,0.62929134]
[1753340116208,0.2428336,117480.0,117470.0,0.39971882]
[1753340116601,0.2428336,117480.0,117470.0,0.1701463]
[1753340116909,0.2428336,117480.0,117470.0,0.39971882]
[1753340117109,0.2458336,117480.0,117470.0,0.40071882]
[1753340117307,0.2458336,117480.0,117470.0,0.1711463]
[1753340117510,0.2458336,117480.0,117470.0,0.40071882]
[1753340118098,0.2300836,117480.0,117470.0,0.63029134]
[1753340118602,0.2270836,117480.0,117470.0,0.62929134]
[1753340118805,0.05894,117480.0,117470.0,0.63029134]
[1753340119311,0.002,117480.0,117470.0,0.63029134]
[1753340119604,0.002,117480.0,117470.0,0.90053934]
[1753340119812,0.2853266,117500.0,117490.0,0.1701173]
[1753340120012,0.2853266,117500.0,117490.0,1.04236982]
[1753340120498,0.07269,117500.0,117490.0,1.04236982]
[1753340120705,0.05694,117500.0,117490.0,1.04236982]
[1753340121311,0.2300428,117500.0,117490.0,1.04236982]
[1753340121504,0.05994,117500.0,117490.0,1.04236982]
[1753340121705,0.003,117500.0,117490.0,1.05268817]
[1753340122008,1.5,117510.0,117500.0,0.1701028]
[1753340122207,1.5,117510.0,117500.0,0.62924784]
[1753340122409,1.5,117510.0,117500.0,0.56988332]
[1753340122606,1.55694,117510.0,117500.0,0.39967532]
[1753340122811,0.05694,117510.0,117500.0,0.39967532]
[1753340123205,0.05694,117510.0,117500.0,0.41858774]
[1753340124110,0.05694,117510.0,117500.0,0.64816026]
[1753340124807,1.5,117520.0,117510.0,0.2634384]
[1753340125010,0.1700659,117530.0,117520.0,0.2634239]
[1753340125213,0.1700659,117530.0,117520.0,0.74139001]
[1753340125415,0.2970731,117540.0,117530.0,0.2634094]
[1753340125714,0.25456,117540.0,117530.0,1.14621639]
[1753340125914,0.185807,117540.0,117530.0,1.14621639]
[1753340126213,1.670045,117540.0,117530.0,1.14621639]
[1753340126406,1.5,117540.0,117530.0,1.14621639]
[1753340126607,1.5,117540.0,117530.0,0.91664387]
[1753340126802,1.5,117540.0,117530.0,1.14621639]
[1753340127003,1.670045,117540.0,117530.0,1.14621639]
[1753340127203,1.5,117540.0,117530.0,1.14621639]
[1753340127613,1.5,117540.0,117530.0,1.165354]
[1753340128013,1.501,117540.0,117530.0,1.165354]
[1753340128410,0.001,117540.0,117530.0,1.165354]
[1753340129217,0.006,117540.0,117530.0,1.16643491]
[1753340131810,0.006,117540.0,117530.0,0.93686239]
[1753340132014,0.006,117540.0,117530.0,1.16643491]
[1753340132213,1.7427242,117550.0,117540.0,0.263555]
[1753340132415,1.57269,117550.0,117540.0,0.49312752]
[1753340132616,1.51575,117550.0,117540.0,0.49312752]
[1753340133016,0.2542265,117560.0,117550.0,0.2069705]
[1753340133214,0.2542161,117560.0,117550.0,1.38344007]
[1753340133414,0.3192687,117570.0,117560.0,0.2180261]
[1753340133616,0.3192687,117570.0,117560.0,0.74836114]
[1753340133915,0.10675,117570.0,117560.0,0.74836114]
[1753340134317,0.08392,117570.0,117560.0,0.74836114]
[1753340134517,1.58392,117570.0,117560.0,0.74836114]
[1753340134722,1.55697,117570.0,117560.0,0.74836114]
[1753340134910,0.08392,117580.0,117570.0,0.2892016]
[1753340135111,0.06741,117580.0,117570.0,1.15977412]
[1753340135313,0.05697,117580.0,117570.0,1.15977412]
[1753340135811,0.24417407,117590.0,117580.0,0.2891871]
[1753340136019,0.31074407,117590.0,117580.0,0.51875962]
[1753340136212,0.31074407,117590.0,117580.0,0.2891871]
[1753340136512,0.2510361,117580.0,117570.0,0.25575252]
[1753340136714,0.4240232,117580.0,117570.0,1.05656392]
[1753340137108,0.4240232,117580.0,117570.0,1.04181412]
[1753340137618,0.4240232,117580.0,117570.0,1.04201412]
[1753340138121,0.4210232,117580.0,117570.0,0.39957412]
[1753340138317,0.4210232,117580.0,117570.0,1.04169412]
[1753340138912,0.4230232,117580.0,117570.0,1.04269412]
[1753340139314,0.3805234,117580.0,117570.0,1.11453412]
[1753340139520,0.3805234,117580.0,117570.0,1.14727412]
[1753340139818,0.3805234,117580.0,117570.0,1.14719412]
[1753340140013,0.3805234,117580.0,117570.0,0.97719252]
[1753340140612,0.3805234,117580.0,117570.0,0.92062252]
[1753340141107,0.3805234,117580.0,117570.0,0.04901]
[1753340141420,0.3815234,117580.0,117570.0,0.92034252]
[1753340142120,0.3815234,117580.0,117570.0,0.69077]
[1753340142316,0.3815234,117580.0,117570.0,0.92034252]
[1753340142919,0.3815234,117580.0,117570.0,1.09034412]
[1753340143119,0.40249064,117580.0,117570.0,1.09034412]
[1753340143319,0.40249064,117580.0,117570.0,0.8607716]
[1753340143521,0.40249064,117580.0,117570.0,1.09034412]
[1753340144021,0.40249064,117580.0,117570.0,0.8607716]
[1753340144220,0.40249064,117580.0,117570.0,1.09034412]
[1753340145115,0.40251225,117580.0,117570.0,1.09034412]
[1753340146418,0.40251225,117580.0,117570.0,1.14691412]
[1753340148924,0.40251225,117580.0,117570.0,1.16153412]
[1753340150522,0.40251225,117580.0,117570.0,1.14691412]
[1753340150723,0.40251225,117580.0,117570.0,0.27858252]
[1753340150923,0.40251225,117580.0,117570.0,0.25675252]
[1753340151126,0.63208477,117580.0,117570.0,0.63996]
[1753340151315,0.40251225,117580.0,117570.0,1.03953412]
[1753340151522,0.40251225,117580.0,117570.0,1.11072412]
[1753340152124,0.40251225,117580.0,117570.0,1.09610412]
[1753340152429,0.40251225,117580.0,117570.0,0.87065252]
[1753340152626,0.40251225,117580.0,117570.0,0.001]
[1753340152832,0.3360776,117560.0,117550.0,0.27758252]
[1753340153025,0.35706645,117560.0,117550.0,0.91778252]
[1753340153331,0.35706645,117560.0,117550.0,1.08797302]
[1753340154034,0.35706645,117560.0,117550.0,0.8584005]
[1753340154233,0.35706645,117560.0,117550.0,0.44761302]
[1753340154430,0.35806645,117560.0,117550.0,0.68925]
[1753340154639,0.35806645,117560.0,117550.0,0.91882252]
[1753340155337,0.35706645,117560.0,117550.0,0.87057252]
[1753340155535,0.35906645,117560.0,117550.0,0.87157252]
[1753340155735,0.35906645,117560.0,117550.0,0.23157252]
[1753340156038,0.35906645,117560.0,117550.0,0.87013252]
[1753340156532,0.36894072,117560.0,117550.0,0.87013252]
[1753340156930,0.35906645,117560.0,117550.0,0.87013252]
[1753340157235,0.36206645,117560.0,117550.0,0.87013252]
[1753340157427,0.36206645,117560.0,117550.0,0.64056]
[1753340157628,0.36206645,117560.0,117550.0,0.87013252]
[1753340159733,0.36206645,117560.0,117550.0,1.04016302]
[1753340160038,0.36206645,117560.0,117550.0,0.87013252]
[1753340160532,0.36206645,117560.0,117550.0,1.04016302]
[1753340160737,0.36206645,117560.0,117550.0,0.8105905]
[1753340160939,0.36206645,117560.0,117550.0,1.04016302]
[1753340161140,0.36206645,117560.0,117550.0,0.64056]
[1753340161334,0.36206645,117560.0,117550.0,1.04016302]
[1753340161540,0.36206645,117560.0,117550.0,0.64056]
[1753340161736,0.36206645,117560.0,117550.0,0.87013252]
[1753340162141,0.28627495,117560.0,117550.0,1.38934554]
[1753340162338,0.19600495,117560.0,117550.0,1.38934554]
[1753340162538,0.19600495,117560.0,117550.0,1.15977302]
[1753340162738,0.32005495,117560.0,117550.0,1.15977302]
[1753340162943,0.32005495,117560.0,117550.0,1.15945302]
[1753340163143,0.32005495,117560.0,117550.0,0.50594302]
[1753340163442,0.32005495,117560.0,117550.0,1.08858302]
[1753340164839,0.32005495,117560.0,117550.0,1.15951302]
[1753340165034,0.08464885,117560.0,117550.0,1.15951302]
[1753340165339,0.02598885,117560.0,117550.0,1.38908554]
[1753340165638,0.005,117560.0,117550.0,1.38908554]
[1753340165946,0.02609073,117560.0,117550.0,1.38908554]
[1753340166252,0.005,117560.0,117550.0,1.38908554]
[1753340166941,0.3303063,117580.0,117560.0,0.11976]
[1753340167147,0.3303063,117580.0,117570.0,1.10966452]
[1753340167340,0.2878059,117580.0,117570.0,1.10966452]
[1753340167740,0.39001307,117590.0,117580.0,0.2188176]
[1753340167941,0.34751677,117590.0,117580.0,0.51932012]
[1753340168135,0.37420677,117590.0,117580.0,0.51932012]
[1753340168341,0.39625677,117590.0,117580.0,0.51932012]
[1753340168546,0.35376137,117590.0,117580.0,0.51932012]
[1753340168743,0.11923137,117590.0,117580.0,0.51932012]
[1753340168942,0.01723137,117590.0,117580.0,0.51932012]
[1753340169842,0.02223137,117590.0,117580.0,0.52032012]
[1753340170042,0.19220447,117590.0,117580.0,0.52032012]
[1753340170349,0.27151447,117590.0,117580.0,0.52032012]
[1753340170548,0.09654137,117590.0,117580.0,0.52032012]
[1753340170749,0.26651447,117590.0,117580.0,0.52032012]
[1753340171144,0.26251447,117590.0,117580.0,0.52032012]
[1753340171337,0.26351447,117590.0,117580.0,0.52032012]
[1753340172249,0.2566431,117590.0,117580.0,0.52032012]
[1753340172445,0.2950231,117590.0,117580.0,0.52032012]
[1753340174548,0.02581,117590.0,117580.0,0.52032012]
[1753340174755,0.3036662,117610.0,117600.0,0.2755086]
[1753340174947,0.3036662,117610.0,117600.0,1.14344112]
[1753340175348,0.3789762,117610.0,117600.0,1.14344112]
[1753340175844,0.3819762,117610.0,117600.0,1.11092112]
[1753340176253,0.3869762,117610.0,117600.0,1.11192112]
[1753340176755,0.3839762,117610.0,117600.0,1.14444112]
[1753340176957,0.3859762,117610.0,117600.0,1.14444112]
[1753340177253,0.3809762,117610.0,117600.0,1.14344112]
[1753340177456,0.3849762,117610.0,117600.0,1.14444112]
[1753340177651,0.3849762,117610.0,117600.0,1.15865112]
[1753340178248,1.63005,117610.0,117600.0,1.38822364]
[1753340178652,1.7999943,117610.0,117600.0,0.74986364]
[1753340178849,1.7999943,117610.0,117600.0,1.38758364]
[1753340179049,1.7999943,117610.0,117600.0,1.38738364]
[1753340179552,1.63005,117610.0,117600.0,1.38738364]
[1753340179753,1.7999943,117610.0,117600.0,0.74986364]
[1753340180059,1.7999943,117610.0,117600.0,1.38734364]
[1753340180857,1.7999943,117610.0,117600.0,0.74986364]
[1753340181050,1.7999943,117610.0,117600.0,1.38710364]
[1753340184250,0.2999943,117610.0,117600.0,1.38710364]
[1753340184654,1.7999943,117610.0,117600.0,1.38710364]
[1753340187060,1.7999943,117610.0,117600.0,1.40600646]
[1753340190360,1.63005,117610.0,117600.0,1.40600646]
[1753340190561,1.7999948,117610.0,117600.0,1.40600646]
[1753340192868,0.2097948,117610.0,117600.0,1.40600646]
[1753340193070,0.006,117610.0,117600.0,1.40600646]
[1753340193474,1.57213,117620.0,117610.0,0.2877149]
[1753340193672,1.7266305,117620.0,117610.0,0.2877149]
[1753340193876,1.7266305,117620.0,117610.0,0.51728742]
[1753340194273,1.7420605,117620.0,117610.0,0.51728742]
[1753340194675,1.7450605,117620.0,117610.0,0.51728742]
[1753340195778,1.57513,117620.0,117610.0,0.51728742]
[1753340196371,1.506,117620.0,117610.0,0.51728742]
[1753340196673,0.2421468,117630.0,117620.0,0.1699304]
[1753340196879,0.2421468,117630.0,117620.0,1.16983443]
[1753340197178,1.57223,117630.0,117620.0,1.16983443]
[1753340197476,0.3269996,117640.0,117630.0,0.2876866]
[1753340197670,0.3269996,117640.0,117630.0,0.51725912]
[1753340197867,0.3650896,117640.0,117630.0,0.51725912]
[1753340198072,0.3755996,117640.0,117630.0,0.51725912]
[1753340198678,0.3331207,117640.0,117630.0,0.51725912]
[1753340199873,0.3341207,117640.0,117630.0,0.52728552]
[1753340202178,0.3341207,117640.0,117630.0,0.297713]
[1753340202369,0.3341207,117640.0,117630.0,0.52728552]
[1753340202570,0.35520356,117640.0,117630.0,0.52728552]
[1753340202775,0.18528946,117640.0,117620.0,0.07494151]
[1753340202974,0.2906465,117630.0,117620.0,0.06642151]
[1753340203166,0.2906465,117630.0,117620.0,0.69962151]
[1753340203369,0.2906465,117630.0,117620.0,0.01868151]
[1753340203676,0.31172777,117630.0,117620.0,0.65244151]
[1753340204173,0.31172777,117630.0,117620.0,0.01868151]
[1753340204374,0.2410554,117610.0,117600.0,1.67864264]
[1753340204575,0.2906754,117610.0,117600.0,2.27051324]
[1753340205279,0.2906754,117610.0,117600.0,2.22802474]
[1753340205477,0.2906754,117610.0,117600.0,1.05278474]
[1753340206180,0.2906754,117610.0,117600.0,0.82321222]
[1753340206480,0.2906754,117610.0,117600.0,1.05279524]
[1753340206680,0.2906754,117610.0,117600.0,1.05379524]
[1753340206876,0.31169068,117610.0,117600.0,1.05379524]
[1753340207380,0.31169068,117610.0,117600.0,1.05279524]
[1753340208080,0.31169068,117610.0,117600.0,1.07631524]
[1753340208682,0.31169068,117610.0,117600.0,0.86208272]
[1753340208881,0.31169068,117610.0,117600.0,0.92169534]
[1753340209081,1.81169068,117610.0,117600.0,0.69212282]
[1753340209283,1.81169068,117610.0,117600.0,0.66860282]
[1753340209485,1.81169068,117610.0,117600.0,0.89817534]
[1753340209880,1.81169068,117610.0,117600.0,0.88283534]
[1753340210778,1.81169068,117610.0,117600.0,0.92722272]
[1753340210989,1.81169068,117610.0,117600.0,0.94099272]
[1753340212288,1.81169068,117610.0,117600.0,0.88283534]
[1753340212479,1.81169068,117610.0,117600.0,0.25047534]
[1753340212681,1.81169068,117610.0,117600.0,0.65454282]
[1753340213887,1.81169068,117610.0,117600.0,0.65354282]
[1753340214386,1.81169068,117610.0,117600.0,0.88311534]
[1753340214586,1.81169068,117610.0,117600.0,0.88211534]
[1753340215182,1.98175468,117610.0,117600.0,0.65254282]
[1753340217689,1.81169068,117610.0,117600.0,0.65254282]
[1753340220685,1.81169068,117610.0,117600.0,0.88211534]
[1753340221090,1.81169068,117610.0,117600.0,1.05207524]
[1753340221288,1.81169068,117610.0,117600.0,0.88211534]
[1753340222190,1.81169068,117610.0,117600.0,1.05207524]
[1753340222689,1.7906754,117610.0,117600.0,1.35067776]
[1753340223288,1.7906754,117610.0,117600.0,1.39897776]
[1753340223495,1.7906754,117610.0,117600.0,1.16940524]
[1753340224389,1.7906754,117610.0,117600.0,1.17040524]
[1753340225195,1.7906754,117610.0,117600.0,1.17140524]
[1753340226093,1.7906754,117610.0,117600.0,1.17340524]
[1753340227188,1.7906754,117610.0,117600.0,1.40297776]
[1753340227790,1.7906754,117610.0,117600.0,1.17340524]
[1753340227990,1.7906754,117610.0,117600.0,0.94383272]
[1753340228190,1.7906754,117610.0,117600.0,1.17340524]
[1753340229387,1.7906754,117610.0,117600.0,0.53976524]
[1753340229592,1.7906754,117610.0,117600.0,1.17312524]
[1753340231896,1.7906754,117610.0,117600.0,1.12706524]
[1753340232297,1.7906754,117610.0,117600.0,0.49470524]
[1753340232504,1.7906754,117610.0,117600.0,1.12698524]
[1753340233305,0.01026,117530.0,117510.0,0.17007791]
[1753340233605,0.1875446,117500.0,117490.0,1e-08]
[1753340233900,0.187588,117470.0,117460.0,0.72857992]
[1753340234103,0.187588,117470.0,117460.0,0.95815244]
[1753340234301,0.187588,117470.0,117460.0,1.13210092]
[1753340234499,0.184588,117470.0,117460.0,0.48490092]
[1753340234702,0.252385,117470.0,117460.0,0.48490092]
[1753340235094,0.247385,117470.0,117460.0,0.2553284]
[1753340235495,0.247385,117470.0,117460.0,0.5242851]
[1753340235700,0.247385,117470.0,117460.0,1.1746451]
[1753340236708,0.247385,117470.0,117460.0,0.9086884]
[1753340237115,0.257645,117470.0,117460.0,0.9569884]
[1753340237413,0.28358537,117470.0,117460.0,0.9569884]
[1753340237805,0.28358537,117470.0,117460.0,1.2259451]
[1753340238723,0.28358537,117470.0,117460.0,1.3961065]
[1753340239014,0.28358537,117470.0,117460.0,1.2259451]
[1753340239405,0.28358537,117470.0,117460.0,0.9569884]
[1753340239606,0.28358537,117470.0,117460.0,1.2259451]
[1753340240403,0.28358537,117470.0,117460.0,1.3961066]
[1753340240610,0.28358537,117470.0,117460.0,1.2259451]
[1753340241702,0.28258537,117470.0,117460.0,1.2259451]
[1753340241905,0.28358537,117470.0,117460.0,1.2259451]
[1753340242306,0.28358537,117470.0,117460.0,0.9569884]
[1753340242505,0.28358537,117470.0,117460.0,1.2259451]
[1753340242907,0.28358537,117470.0,117460.0,0.9569884]
[1753340243108,0.28358537,117470.0,117460.0,1.2259451]
[1753340243306,0.28358537,117470.0,117460.0,0.9569884]
[1753340244414,0.28358537,117470.0,117460.0,0.3106284]
[1753340244615,0.28358537,117470.0,117460.0,0.9552284]
[1753340245109,0.28358537,117470.0,117460.0,0.12709]
[1753340245314,0.28358537,117470.0,117460.0,0.11082]
[1753340245509,0.28358537,117470.0,117460.0,0.10063]
[1753340245715,0.36271537,117470.0,117460.0,0.007]
[1753340245921,0.2853215,117460.0,117450.0,0.01627]
[1753340246210,0.31126187,117460.0,117450.0,0.66039]
[1753340246414,0.31126187,117460.0,117450.0,0.6985]
[1753340246615,0.31126187,117460.0,117450.0,0.70869]
[1753340247114,0.2853215,117460.0,117450.0,0.71269]
[1753340247310,0.31105688,117460.0,117450.0,0.71269]
[1753340247814,0.31105688,117460.0,117450.0,0.76821]
[1753340248013,0.31105688,117460.0,117450.0,0.76785]
[1753340248214,0.2863215,117460.0,117450.0,0.76885]
[1753340248406,0.2863215,117460.0,117450.0,0.76829]
[1753340249112,0.2863215,117460.0,117450.0,0.9518284]
[1753340249620,0.31176224,117460.0,117450.0,0.9518284]
[1753340251717,0.26026224,117460.0,117450.0,0.76829]
[1753340251915,0.2358215,117460.0,117450.0,1.2207851]
[1753340252219,0.2358215,117460.0,117450.0,0.9518284]
[1753340252417,0.2358215,117460.0,117450.0,1.2207851]
[1753340253121,0.26125802,117460.0,117450.0,1.2207851]
[1753340253619,0.26125903,117460.0,117450.0,1.2207851]
[1753340253819,0.2358215,117460.0,117450.0,1.2207851]
[1753340256008,0.1824215,117460.0,117450.0,1.2207851]
[1753340256214,0.20789046,117460.0,117450.0,1.2207851]
[1753340256614,0.22670046,117460.0,117450.0,1.2207851]
[1753340258014,0.22670046,117460.0,117450.0,0.9518284]
[1753340258210,0.22670046,117460.0,117450.0,1.2207851]
[1753340258422,0.20789046,117460.0,117450.0,1.3909614]
[1753340258818,0.20789046,117460.0,117450.0,1.2207851]
[1753340259009,0.20789046,117460.0,117450.0,0.9518284]
[1753340259216,0.22670046,117460.0,117450.0,1.2207851]
[1753340259416,0.31672046,117460.0,117450.0,0.005]
[1753340259615,0.2413808,117440.0,117430.0,0.71366]
[1753340259816,0.31782976,117440.0,117430.0,1.1661551]
[1753340260015,0.31782976,117440.0,117430.0,0.5805051]
[1753340260211,0.31782976,117440.0,117430.0,1.2214651]
[1753340260621,0.31782976,117440.0,117430.0,0.5805051]
[1753340260815,0.31782976,117440.0,117430.0,1.2215051]
[1753340261018,0.31782976,117440.0,117430.0,1.3917104]
[1753340261217,0.29887976,117440.0,117430.0,1.3917104]
[1753340261419,0.19665976,117440.0,117430.0,1.3927104]
[1753340261620,0.19765976,117440.0,117430.0,1.3937104]
[1753340262722,0.19765976,117440.0,117430.0,0.7527104]
[1753340262915,0.19765976,117440.0,117430.0,1.3937504]
[1753340263120,0.24335385,117440.0,117430.0,1.2235451]
[1753340263320,0.24335385,117440.0,117430.0,1.3937503]
[1753340263918,0.19765976,117440.0,117430.0,1.3937503]
[1753340264119,0.19665976,117440.0,117430.0,1.3937503]
[1753340264324,0.19765976,117440.0,117430.0,1.4033503]
[1753340264520,1.00322138,117440.0,117430.0,0.0116]
[1753340264729,0.95778646,117440.0,117430.0,0.0116]
[1753340265127,1.00326173,117440.0,117430.0,0.0116]
[1753340265323,0.73430503,117440.0,117430.0,0.0116]
[1753340265526,0.73430503,117440.0,117430.0,0.06914]
[1753340266224,0.68882976,117440.0,117430.0,0.06914]
[1753340267029,0.68882976,117440.0,117430.0,0.06814]
[1753340267227,0.75041038,117440.0,117430.0,0.06814]
[1753340267423,0.68982976,117440.0,117430.0,0.06814]
[1753340267823,0.7506645,117440.0,117430.0,0.08384]
[1753340268030,0.7317145,117440.0,117430.0,0.13861]
[1753340268431,0.7327145,117440.0,117430.0,0.13861]
[1753340269433,0.7327145,117440.0,117430.0,0.3088154]
[1753340269636,0.7327145,117440.0,117430.0,0.13861]
[1753340269934,0.63884976,117440.0,117430.0,0.5777721]
[1753340270229,0.3306845,117440.0,117430.0,0.7613105]
[1753340270530,0.32966845,117440.0,117430.0,0.7613105]
[1753340270937,0.31185845,117440.0,117430.0,0.7613105]
[1753340271437,0.26984976,117440.0,117430.0,0.4923538]
[1753340272344,0.26984976,117440.0,117430.0,0.7613105]
[1753340272745,0.26905582,117440.0,117430.0,0.7613105]
[1753340274049,0.24924582,117440.0,117430.0,0.7613105]
[1753340274449,0.25024582,117440.0,117430.0,0.7613105]
[1753340274650,0.19786582,117440.0,117430.0,0.5777721]
[1753340274842,0.24348369,117440.0,117430.0,0.7613105]
[1753340275039,0.24448369,117440.0,117430.0,0.7613105]
[1753340275249,0.24448369,117440.0,117430.0,0.72194148]
[1753340275550,0.24348369,117440.0,117430.0,0.72194148]
[1753340276452,0.24448369,117440.0,117430.0,0.72194148]
[1753340277250,0.24348369,117440.0,117430.0,0.72194148]
[1753340277451,0.25968451,117440.0,117430.0,0.4923538]
[1753340277650,0.25968451,117440.0,117430.0,0.72194148]
[1753340278150,0.25968451,117440.0,117430.0,0.4923538]
[1753340278352,0.25968451,117440.0,117430.0,0.72194148]
[1753340278956,0.19786582,117440.0,117430.0,0.72194148]
[1753340279956,0.24351279,117440.0,117430.0,0.72194148]
[1753340280153,0.24451279,117440.0,117430.0,0.72194148]
[1753340280353,0.24351279,117440.0,117430.0,1.35546148]
[1753340280756,0.24450606,117440.0,117430.0,1.35546148]
[1753340281157,0.24450606,117440.0,117430.0,1.1258738]
[1753340281453,0.24450606,117440.0,117430.0,1.35546148]
[1753340281650,0.34753606,117440.0,117430.0,0.72098]
[1753340281850,0.32084582,117440.0,117430.0,0.96542768]
[1753340282157,0.32084582,117440.0,117430.0,1.17116318]
[1753340282559,0.38166451,117440.0,117430.0,1.17116318]
[1753340282759,0.38166451,117440.0,117430.0,0.53832318]
[1753340282959,0.38166451,117440.0,117430.0,1.17060318]
[1753340283163,0.32084582,117440.0,117430.0,1.17060318]
[1753340283461,0.38166451,117440.0,117430.0,1.17060318]
[1753340283968,0.32084582,117440.0,117430.0,1.17060318]
[1753340284662,0.32084582,117440.0,117430.0,0.9410155]
[1753340284859,0.36650119,117440.0,117430.0,1.17060318]
[1753340285064,0.25663119,117440.0,117430.0,1.35414158]
[1753340285259,0.25663119,117440.0,117430.0,1.17060318]
[1753340285260,0.08644039,117440.0,117430.0,1.17060318]
[1753340285462,0.07333039,117440.0,117430.0,1.35310158]
[1753340285657,0.07333039,117440.0,117430.0,0.72186158]
[1753340285858,0.1701884,117450.0,117440.0,0.170191]
[1753340286064,0.29392788,117460.0,117450.0,0.2972665]
[1753340286361,0.29294059,117460.0,117450.0,1.34339258]
[1753340286967,0.23204641,117460.0,117450.0,1.34339258]
[1753340287656,0.26594641,117460.0,117450.0,1.34339258]
[1753340288461,0.26894641,117460.0,117450.0,1.34439258]
[1753340288855,0.27294641,117460.0,117450.0,1.34443258]
[1753340289067,0.23904641,117460.0,117450.0,1.34443258]
[1753340289453,0.32162641,117460.0,117450.0,1.34443258]
[1753340289653,0.32162641,117460.0,117450.0,0.4818049]
[1753340289654,0.36486641,117460.0,117450.0,0.4818049]
[1753340289860,0.36286641,117460.0,117450.0,1.34315258]
[1753340290968,0.002,117460.0,117450.0,1.36061445]
[1753340291562,0.002,117460.0,117450.0,1.53089445]
[1753340292361,0.002,117460.0,117450.0,1.36061445]
[1753340292562,0.256713,117480.0,117470.0,0.52682518]
[1753340292767,0.281213,117480.0,117470.0,1.34144358]
[1753340293771,0.285213,117480.0,117470.0,1.34832327]
[1753340294662,0.308953,117480.0,117470.0,1.34932327]
[1753340296163,0.290213,117480.0,117470.0,1.35042224]
[1753340296462,0.290213,117480.0,117470.0,1.12083456]
[1753340296769,0.290213,117480.0,117470.0,1.35042224]
[1753340297065,0.290213,117480.0,117470.0,1.35078031]
[1753340297369,0.308953,117480.0,117470.0,1.35078031]
[1753340297573,0.308953,117480.0,117470.0,0.71970031]
[1753340297761,0.308953,117480.0,117470.0,1.35066031]
[1753340298766,0.308953,117480.0,117470.0,0.48423294]
[1753340299069,0.308953,117480.0,117470.0,1.34478062]
[1753340299670,0.308953,117480.0,117470.0,0.71382062]